Workbook

Sheet 0
A1: 2025年南关区属公共街路、绿地养护项目
A2: 序号 | B2: 采购金额（元） | C2: 名称 | D2: 种类 | E2: 特征描述 | F2: 数量 | G2: 单位 | H2: 综合单价（元） | I2: 小计
A3: 2025年南关 区属公共街路、 绿地养护项目 | B3: =I3+I4+I5+I6+I7+I8+I9+I10+I11+I12+I13 -> 0 | C3: 公共街路养护 （卫星路以北） | D3: 乔木（涂白1次、抹树芽5次）养护期5个月 | E3: 乔木养护 服务内容：（1）涂白1次，涂白高度1.2m ,同一路段、区域的涂白高度一致。涂白时保持树木周边无涂白料，干净整洁。 （2）抹树芽5次（1次/月，仅杨树、柳树、稠李需要抹树芽）人工清除，单次除干净，不要留残枝。 （3）垃圾外运，运距自行考虑。 服务期：5个月。 | F3: =493+857+186+550+427+96+3277+519 -> 6405 | G3: 株 | I3: =F3*H3 -> 0
D4: 乔木（涂白1次）养护期5个月 | E4: 乔木养护 服务内容：（1）涂白1次，涂白高度1.2m ,同一路段、区域的涂白高度一致。涂白时保持树木周边无涂白料，干净整洁。 （2）抹树芽5次（1次/月，仅杨树、柳树、稠李需要抹树芽）人工清除，单次除干净，不要留残枝。 （3）垃圾外运，运距自行考虑。 服务期：5个月。 | F4: =1429+146+62+332+172+392+384+216 -> 3133 | G4: 株 | I4: 0
D5: 灌木养护期5个月 | E5: 灌木养护 服务内容：（1）除杂8次以上，人工清除，不能留有杂草，杂草单平米不超3株，杂草高度不超5cm。 （2）杂草及时清理，保证绿地内无残枝，垃圾外运，运距自行考虑。 服务期：5个月。 | F5: 342 | G5: 株 | I5: 0
D6: 绿篱养护期5个月 | E6: 绿篱养护 服务内容：（1）修剪8次以上，保持新生枝条不超过10CM，绿篱整形符合造景要求，立面、平面整齐，光滑，无高低不平现象。 （2）除杂8次以上，人工清除，不能留有杂草，单平米不超3株，杂草高度不超5cm。 （3）修剪枝条及时清理，保证绿地内无残枝，垃圾外运，运距自行考虑。 服务期：5个月。 | F6: 26524 | G6: 平方米 | I6: 0
D7: 草坪养护期5个月 | E7: 草坪养护 服务内容：（1）修剪8次以上，采用割冠机和草坪修剪机修剪，修剪整齐，高度一致，高度控制在6-8厘米，确保草坪外观整齐。 （2）修剪下的草坪及时外运，运距自行考虑。 (3)除杂8次，人工清除，不能留有杂草，杂草高度不超5cm。 服务期：5个月。 | F7: 4604 | G7: 平方米 | I7: 0
D8: 宿根花卉养护期5个月 | E8: 宿根花卉 服务内容：（1）除杂8次以上，人工清除，不能留有杂草，杂草单平米不超3株，杂草高度不超5cm。 （2）杂草及时清理，保证绿地内无残花，垃圾外运，运距自行考虑。 服务期：5个月。 | F8: 12860 | G8: 平方米 | I8: 0
D9: 应季花卉养护期5个月 | E9: 应季花卉养护 服务内容：（1）除杂8次以上，人工清除，不能留有杂草，杂草单平米不超3株，杂草高度不超5cm。 （2）杂草及时清理，保证绿地内无残花，垃圾外运，运距自行考虑。 服务期：5个月。 | F9: 325 | G9: 平方米 | I9: 0
C10: 公共绿地养护 （卫星路以北） | D10: 绿篱养护期5个月 | E10: 绿篱养护 服务内容：（1）修剪8次以上，保持新生枝条不超过10CM，绿篱整形符合造景要求，立面、平面整齐，光滑，无高低不平现象。 （2）除杂8次以上，人工清除，不能留有杂草，单平米不超3株，杂草高度不超5cm。 （3）修剪枝条及时清理，保证绿地内无残枝，垃圾外运，运距自行考虑。 服务期：5个月。 | F10: 20889 | G10: 平方米 | I10: 0
D11: 草坪养护期5个月 | E11: 草坪养护 服务内容：（1）修剪8次以上，采用割冠机和草坪修剪机修剪，修剪整齐，高度一致，高度控制在6-8厘米，确保草坪外观整齐。 （2）修剪下的草坪及时外运，运距自行考虑。 (3)除杂8次，人工清除，不能留有杂草，杂草高度不超5cm。 服务期：5个月。 | F11: 120556 | G11: 平方米 | I11: 0
D12: 宿根花卉养护期5个月 | E12: 宿根花卉 服务内容：（1）除杂8次以上，人工清除，不能留有杂草，杂草单平米不超3株，杂草高度不超5cm。 （2）杂草及时清理，保证绿地内无残花，垃圾外运，运距自行考虑。 服务期：5个月。 | F12: 34623 | G12: 平方米 | I12: 0
D13: 应季花卉养护期5个月 | E13: 应季花卉养护 服务内容：（1）除杂8次以上，人工清除，不能留有杂草，杂草单平米不超3株，杂草高度不超5cm。 （2）杂草及时清理，保证绿地内无残花，垃圾外运，运距自行考虑。 服务期：5个月。 | F13: 3813 | G13: 平方米 | I13: 0
A14: 小计 | B14: =SUM(B3:B13) -> 0
A17: 2025年南关区属公共街路、绿地养护项目
A18: 序号 | B18: 采购金额（元） | C18: 名称 | D18: 种类 | E18: 特征描述 | F18: 数量 | G18: 单位 | H18: 综合单价（元） | I18: 小计
A19: 2025年南关 区属公共街路、 绿地养护项目 | B19: =I19+I20+I21+I22+I23+I24+I25+I26+I27+I28 -> 0 | C19: 公共街路养护 （卫星路以南-南四环路） | D19: 乔木（涂白1次、抹树芽5次）养护期5个月 | E19: 乔木养护 服务内容：（1）涂白1次，涂白高度1.2m ,同一路段、区域的涂白高度一致。涂白时保持树木周边无涂白料，干净整洁。 （2）抹树芽5次（1次/月，仅杨树、柳树、稠李需要抹树芽）人工清除，单次除干净，不要留残枝。 （3）垃圾外运，运距自行考虑。 服务期：5个月。 | F19: =1390+328+306+609+202+330+2083 -> 5248 | G19: 株 | I19: =F19*H19 -> 0
D20: 乔木（涂白1次）养护期5个月 | E20: 乔木养护 服务内容：（1）涂白1次，涂白高度1.2m ,同一路段、区域的涂白高度一致。涂白时保持树木周边无涂白料，干净整洁。 （2）抹树芽5次（1次/月，仅杨树、柳树、稠李需要抹树芽）人工清除，单次除干净，不要留残枝。 （3）垃圾外运，运距自行考虑。 服务期：5个月。 | F20: =2068+315+317+698+1427+31+1274 -> 6130 | G20: 株 | I20: 0
D21: 绿篱养护期5个月 | E21: 绿篱养护 服务内容：（1）修剪8次以上，保持新生枝条不超过10CM，绿篱整形符合造景要求，立面、平面整齐，光滑，无高低不平现象。 （2）除杂8次以上，人工清除，不能留有杂草，单平米不超3株，杂草高度不超5cm。 （3）修剪枝条及时清理，保证绿地内无残枝，垃圾外运，运距自行考虑。 服务期：5个月。 | F21: =10396+3991 -> 14387 | G21: 平方米 | I21: 0
D22: 草坪养护期5个月 | E22: 草坪养护 服务内容：（1）修剪8次以上，采用割冠机和草坪修剪机修剪，修剪整齐，高度一致，高度控制在6-8厘米，确保草坪外观整齐。 （2）修剪下的草坪及时外运，运距自行考虑。 (3)除杂8次，人工清除，不能留有杂草，杂草高度不超5cm。 服务期：5个月。 | F22: =6607+9123 -> 15730 | G22: 平方米 | I22: 0
D23: 宿根花卉养护期5个月 | E23: 宿根花卉 服务内容：（1）除杂8次以上，人工清除，不能留有杂草，杂草单平米不超3株，杂草高度不超5cm。 （2）杂草及时清理，保证绿地内无残花，垃圾外运，运距自行考虑。 服务期：5个月。 | F23: =18655+6981 -> 25636 | G23: 平方米 | I23: 0
D24: 应季花卉养护期5个月 | E24: 应季花卉养护 服务内容：（1）除杂8次以上，人工清除，不能留有杂草，杂草单平米不超3株，杂草高度不超5cm。 （2）杂草及时清理，保证绿地内无残花，垃圾外运，运距自行考虑。 服务期：5个月。 | F24: 909 | G24: 平方米 | I24: 0
C25: 公共绿地养护 （卫星路以南-南四环路） | D25: 绿篱养护期5个月 | E25: 绿篱养护 服务内容：（1）修剪8次以上，保持新生枝条不超过10CM，绿篱整形符合造景要求，立面、平面整齐，光滑，无高低不平现象。 （2）除杂8次以上，人工清除，不能留有杂草，单平米不超3株，杂草高度不超5cm。 （3）修剪枝条及时清理，保证绿地内无残枝，垃圾外运，运距自行考虑。 服务期：5个月。 | F25: =24998+14326 -> 39324 | G25: 平方米 | I25: 0
D26: 草坪养护期5个月 | E26: 草坪养护 服务内容：（1）修剪8次以上，采用割冠机和草坪修剪机修剪，修剪整齐，高度一致，高度控制在6-8厘米，确保草坪外观整齐。 （2）修剪下的草坪及时外运，运距自行考虑。 (3)除杂8次，人工清除，不能留有杂草，杂草高度不超5cm。 服务期：5个月。 | F26: =93124+97444 -> 190568 | G26: 平方米 | I26: 0
D27: 宿根花卉养护期5个月 | E27: 宿根花卉 服务内容：（1）除杂8次以上，人工清除，不能留有杂草，杂草单平米不超3株，杂草高度不超5cm。 （2）杂草及时清理，保证绿地内无残花，垃圾外运，运距自行考虑。 服务期：5个月。 | F27: =43687+31348 -> 75035 | G27: 平方米 | I27: 0
D28: 应季花卉养护期5个月 | E28: 应季花卉养护 服务内容：（1）除杂8次以上，人工清除，不能留有杂草，杂草单平米不超3株，杂草高度不超5cm。 （2）杂草及时清理，保证绿地内无残花，垃圾外运，运距自行考虑。 服务期：5个月。 | F28: =1768+450 -> 2218 | G28: 平方米 | I28: 0
A29: 小计 | B29: =SUM(B19:B28) -> 0
A30: 2025年南关区属公共街路、绿地养护项目
A31: 序号 | B31: 采购金额（元） | C31: 名称 | D31: 种类 | E31: 特征描述 | F31: 数量 | G31: 单位 | H31: 综合单价（元） | I31: 小计
A32: 2025年南关 区属公共街路、 绿地养护项目 | B32: =I32+I33+I34+I35+I36+I37+I38+I39+I40+I41 -> 0 | C32: 公共街路养护 （南四环-金宇大路） | D32: 乔木（涂白1次、抹树芽5次）养护期5个月 | E32: 乔木养护 服务内容：（1）涂白1次，涂白高度1.2m ,同一路段、区域的涂白高度一致。涂白时保持树木周边无涂白料，干净整洁。 （2）抹树芽5次（1次/月，仅杨树、柳树、稠李需要抹树芽）人工清除，单次除干净，不要留残枝。 （3）垃圾外运，运距自行考虑。 服务期：5个月。 | F32: 6057 | G32: 株 | I32: =F32*H32 -> 0
D33: 乔木（涂白1次）养护期5个月 | E33: 乔木养护 服务内容：（1）涂白1次，涂白高度1.2m ,同一路段、区域的涂白高度一致。涂白时保持树木周边无涂白料，干净整洁。 （2）抹树芽5次（1次/月，仅杨树、柳树、稠李需要抹树芽）人工清除，单次除干净，不要留残枝。 （3）垃圾外运，运距自行考虑。 服务期：5个月。 | F33: =3256-1427 -> 1829 | G33: 株 | I33: 0
D34: 灌木养护期5个月 | E34: 灌木养护 服务内容：（1）除杂8次以上，人工清除，不能留有杂草，杂草单平米不超3株，杂草高度不超5cm。 （2）杂草及时清理，保证绿地内无残枝，垃圾外运，运距自行考虑。 服务期：5个月。 | F34: 957 | G34: 株 | I34: 0
D35: 绿篱养护期5个月 | E35: 绿篱养护 服务内容：（1）修剪8次以上，保持新生枝条不超过10CM，绿篱整形符合造景要求，立面、平面整齐，光滑，无高低不平现象。 （2）除杂8次以上，人工清除，不能留有杂草，单平米不超3株，杂草高度不超5cm。 （3）修剪枝条及时清理，保证绿地内无残枝，垃圾外运，运距自行考虑。 服务期：5个月。 | F35: 15665 | G35: 平方米 | I35: 0
D36: 草坪养护期5个月 | E36: 草坪养护 服务内容：（1）修剪8次以上，采用割冠机和草坪修剪机修剪，修剪整齐，高度一致，高度控制在6-8厘米，确保草坪外观整齐。 （2）修剪下的草坪及时外运，运距自行考虑。 (3)除杂8次，人工清除，不能留有杂草，杂草高度不超5cm。 服务期：5个月。 | F36: 19035 | G36: 平方米 | I36: 0
D37: 宿根花卉养护期5个月 | E37: 宿根花卉 服务内容：（1）除杂8次以上，人工清除，不能留有杂草，杂草单平米不超3株，杂草高度不超5cm。 （2）杂草及时清理，保证绿地内无残花，垃圾外运，运距自行考虑。 服务期：5个月。 | F37: 12069 | G37: 平方米 | I37: 0
C38: 公共绿地养护 （南四环-金宇大路） | D38: 绿篱养护期5个月 | E38: 绿篱养护 服务内容：（1）修剪8次以上，保持新生枝条不超过10CM，绿篱整形符合造景要求，立面、平面整齐，光滑，无高低不平现象。 （2）除杂8次以上，人工清除，不能留有杂草，单平米不超3株，杂草高度不超5cm。 （3）修剪枝条及时清理，保证绿地内无残枝，垃圾外运，运距自行考虑。 服务期：5个月。 | F38: 14318 | G38: 平方米 | I38: 0
D39: 草坪养护期5个月 | E39: 草坪养护 服务内容：（1）修剪8次以上，采用割冠机和草坪修剪机修剪，修剪整齐，高度一致，高度控制在6-8厘米，确保草坪外观整齐。 （2）修剪下的草坪及时外运，运距自行考虑。 (3)除杂8次，人工清除，不能留有杂草，杂草高度不超5cm。 服务期：5个月。 | F39: 212550 | G39: 平方米 | I39: 0
D40: 宿根花卉养护期5个月 | E40: 宿根花卉 服务内容：（1）除杂8次以上，人工清除，不能留有杂草，杂草单平米不超3株，杂草高度不超5cm。 （2）杂草及时清理，保证绿地内无残花，垃圾外运，运距自行考虑。 服务期：5个月。 | F40: 13752 | G40: 平方米 | I40: 0
D41: 应季花卉养护期5个月 | E41: 应季花卉养护 服务内容：（1）除杂8次以上，人工清除，不能留有杂草，杂草单平米不超3株，杂草高度不超5cm。 （2）杂草及时清理，保证绿地内无残花，垃圾外运，运距自行考虑。 服务期：5个月。 | F41: 2000 | G41: 平方米 | I41: 0
A42: 小计 | B42: =SUM(B32:B41) -> 0
A43: 2025年南关区属公共街路、绿地养护项目
A44: 序号 | B44: 采购金额（元） | C44: 名称 | D44: 种类 | E44: 特征描述 | F44: 数量 | G44: 单位 | H44: 综合单价（元） | I44: 小计
A45: 2025年南关 区属公共街路、 绿地养护项目 | B45: =I45+I46+I47+I48+I49+I50+I51+I52 -> 0 | C45: 公共街路养护 （金宇大路以南） | D45: 乔木（涂白1次、抹树芽5次）养护期5个月 | E45: 乔木养护 服务内容：（1）涂白1次，涂白高度1.2m ,同一路段、区域的涂白高度一致。涂白时保持树木周边无涂白料，干净整洁。 （2）抹树芽5次（1次/月，仅杨树、柳树、稠李需要抹树芽）人工清除，单次除干净，不要留残枝。 （3）垃圾外运，运距自行考虑。 服务期：5个月。 | F45: =4592-519-31+515 -> 4557 | G45: 株 | I45: =F45*H45 -> 0
D46: 乔木（涂白1次）养护期5个月 | E46: 乔木养护 服务内容：（1）涂白1次，涂白高度1.2m ,同一路段、区域的涂白高度一致。涂白时保持树木周边无涂白料，干净整洁。 （2）抹树芽5次（1次/月，仅杨树、柳树、稠李需要抹树芽）人工清除，单次除干净，不要留残枝。 （3）垃圾外运，运距自行考虑。 服务期：5个月。 | F46: =1073+1696 -> 2769 | G46: 株 | I46: 0
D47: 绿篱养护期5个月 | E47: 绿篱养护 服务内容：（1）修剪8次以上，保持新生枝条不超过10CM，绿篱整形符合造景要求，立面、平面整齐，光滑，无高低不平现象。 （2）除杂8次以上，人工清除，不能留有杂草，单平米不超3株，杂草高度不超5cm。 （3）修剪枝条及时清理，保证绿地内无残枝，垃圾外运，运距自行考虑。 服务期：5个月。 | F47: 14807 | G47: 平方米 | I47: 0
D48: 草坪养护期5个月 | E48: 草坪养护 服务内容：（1）修剪8次以上，采用割冠机和草坪修剪机修剪，修剪整齐，高度一致，高度控制在6-8厘米，确保草坪外观整齐。 （2）修剪下的草坪及时外运，运距自行考虑。 (3)除杂8次，人工清除，不能留有杂草，杂草高度不超5cm。 服务期：5个月。 | F48: 24107 | G48: 平方米 | I48: 0
D49: 宿根花卉养护期5个月 | E49: 宿根花卉 服务内容：（1）除杂8次以上，人工清除，不能留有杂草，杂草单平米不超3株，杂草高度不超5cm。 （2）杂草及时清理，保证绿地内无残花，垃圾外运，运距自行考虑。 服务期：5个月。 | F49: 46892 | G49: 平方米 | I49: 0
C50: 公共绿地养护 （金宇大路以南） | D50: 绿篱养护期5个月 | E50: 绿篱养护 服务内容：（1）修剪8次以上，保持新生枝条不超过10CM，绿篱整形符合造景要求，立面、平面整齐，光滑，无高低不平现象。 （2）除杂8次以上，人工清除，不能留有杂草，单平米不超3株，杂草高度不超5cm。 （3）修剪枝条及时清理，保证绿地内无残枝，垃圾外运，运距自行考虑。 服务期：5个月。 | F50: 12060 | G50: 平方米 | I50: 0
D51: 草坪养护期5个月 | E51: 草坪养护 服务内容：（1）修剪8次以上，采用割冠机和草坪修剪机修剪，修剪整齐，高度一致，高度控制在6-8厘米，确保草坪外观整齐。 （2）修剪下的草坪及时外运，运距自行考虑。 (3)除杂8次，人工清除，不能留有杂草，杂草高度不超5cm。 服务期：5个月。 | F51: 131989 | G51: 平方米 | I51: 0
D52: 宿根花卉养护期5个月 | E52: 宿根花卉 服务内容：（1）除杂8次以上，人工清除，不能留有杂草，杂草单平米不超3株，杂草高度不超5cm。 （2）杂草及时清理，保证绿地内无残花，垃圾外运，运距自行考虑。 服务期：5个月。 | F52: 30315 | G52: 平方米 | I52: 0
A53: 小计 | B53: =SUM(B45:B52) -> 0
